bitfinex/quotes_SOLUSD_20230104
["timestamp","ask_amount","ask_price","bid_price","bid_amount"]
[1672793881422,9.21,13.62,13.602,23.0882]
[1672793881651,75.12,13.619,13.603,116.8578]
[1672793882185,3.14907087,13.618,13.604,30.0]
[1672793882402,55.13,13.617,13.604,30.0]
[1672793882710,3.14907087,13.616,13.604,30.0]
[1672793883041,55.13,13.615,13.604,30.0]
[1672793883222,3.14907087,13.616,13.604,30.0]
[1672793884061,3.14907087,13.616,13.603,116.8578]
[1672793889756,55.12,13.618,13.603,116.8578]
[1672793890173,58.26907087,13.618,13.603,116.8578]
[1672793890699,20.0,13.619,13.604,30.0]
[1672793890912,20.0,13.619,13.604,85.18]
[1672793891317,3.14907087,13.618,13.604,85.18]
[1672793891527,3.14907087,13.618,13.604,30.0]
[1672793892488,20.0,13.619,13.604,30.0]
[1672793893756,3.14907087,13.618,13.604,30.0]
[1672793894907,20.0,13.619,13.604,30.0]
[1672793895096,3.14907087,13.618,13.604,30.0]
[1672793895851,20.0,13.619,13.604,30.0]
[1672793897622,20.0,13.619,13.604,85.18]
[1672793898902,12.22,13.62,13.604,85.18]
[1672793899097,12.22,13.62,13.605,20.0]
[1672793899307,12.22,13.62,13.606,85.17]
[1672793899523,45.39460321,13.626,13.608,30.0]
[1672793899723,45.39460321,13.626,13.609,55.16]
[1672793900056,45.39460321,13.626,13.61,30.0]
[1672793900259,45.39460321,13.626,13.612,30.0]
[1672793900260,42.24553234,13.626,13.612,30.0]
[1672793900473,42.24553234,13.626,13.614,30.0]
[1672793900690,42.24553234,13.626,13.615,75.13]
[1672793900994,42.24553234,13.626,13.616,30.0]
[1672793901197,42.24553234,13.626,13.617,75.13]
[1672793901398,103.1695,13.638,13.617,75.13]
[1672793901614,42.24553234,13.626,13.619,30.0]
[1672793901837,48.1295,13.638,13.621,30.0]
[1672793902043,48.1295,13.638,13.623,30.0]
[1672793903204,12.37,13.64,13.624,20.0]
[1672793903424,86.56994132,13.65,13.624,20.0]
[1672793903425,55.0,13.648,13.625,30.0]
[1672793903628,55.0,13.648,13.626,75.09]
[1672793903951,55.0,13.648,13.627,30.0]
[1672793904153,55.0,13.648,13.629,30.0]
[1672793905210,12.3,13.64,13.629,30.0]
[1672793905609,12.3,13.64,13.63,55.07]
[1672793905820,55.0,13.648,13.631,30.0]
[1672793906041,103.7809,13.648,13.631,30.0]
[1672793906465,12.22,13.65,13.632,55.07]
[1672793906661,15.36907087,13.65,13.633,20.0]
[1672793906868,64.56907087,13.65,13.634,55.06]
[1672793907079,55.0,13.649,13.631,85.07]
[1672793907287,48.07589087,13.646,13.631,85.07]
[1672793908022,12.22,13.64,13.631,30.0]
[1672793908239,12.22,13.64,13.63,103.6983]
[1672793908447,12.22,13.64,13.63,48.6283]
[1672793908884,12.22,13.64,13.629,30.0]
[1672793909926,3.46042957,13.645,13.63,53.81]
[1672793910140,44.92682,13.646,13.63,53.81]
[1672793910353,44.92682,13.646,13.631,30.0]
[1672793910550,44.92682,13.646,13.633,30.0]
[1672793910775,44.92682,13.646,13.634,73.8]
[1672793910981,44.92682,13.646,13.635,30.0]
[1672793911194,44.92682,13.646,13.637,30.0]
[1672793911400,44.92682,13.646,13.639,30.0]
[1672793911611,44.92682,13.646,13.64,53.53]
[1672793911824,44.92682,13.646,13.641,30.0]
[1672793914554,44.92682,13.646,13.643,30.0]
[1672793914761,2.6792317,13.655,13.645,30.0]
[1672793915278,2.6792317,13.655,13.646,20.0]
[1672793915491,2.6792317,13.655,13.648,30.0]
[1672793916134,12.23,13.66,13.643,78.1121]
[1672793916135,3.46042957,13.657,13.643,78.1121]
[1672793916351,2.4804965,13.655,13.645,30.0]
[1672793916963,12.3,13.65,13.645,26.33931843]
[1672793917399,61.5,13.65,13.642,133.4848]
[1672793917601,61.47,13.65,13.642,133.4848]
[1672793918146,78.46042957,13.649,13.642,23.6889]
[1672793918338,78.46042957,13.649,13.636,23.653]
[1672793918339,109.84448837,13.649,13.636,23.653]
[1672793918550,109.84448837,13.649,13.632,114.6033]
[1672793918551,3.46042957,13.648,13.632,114.6033]
[1672793918761,12.3,13.64,13.632,114.6033]
[1672793918965,12.3,13.64,13.631,0.1981293]
[1672793919180,12.3,13.64,13.631,30.1981293]
[1672793920031,3.46042957,13.645,13.631,38.8561293]
[1672793920227,12.3,13.65,13.631,38.8561293]
[1672793920873,12.3,13.65,13.633,30.0]
[1672793921069,3.03445758,13.655,13.634,140.7687]
[1672793921293,2.4804965,13.655,13.635,30.0]
[1672793921606,2.4804965,13.655,13.637,30.0]
[1672793921802,2.4804965,13.655,13.639,30.0]
[1672793922008,2.4804965,13.655,13.641,30.0]
[1672793922218,2.4804965,13.655,13.642,140.7637]
[1672793922438,2.4804965,13.655,13.643,30.0]
[1672793922647,2.4804965,13.655,13.645,30.0]
[1672793922853,2.4804965,13.655,13.646,28.601]
[1672793923270,2.4804965,13.655,13.647,30.0]
[1672793923486,2.4804965,13.655,13.649,30.0]
[1672793923910,2.4804965,13.655,13.65,8.305]
[1672793924122,2.4804965,13.655,13.649,30.0]
[1672793924950,2.4804965,13.655,13.647,8.307]
[1672793925172,2.4804965,13.655,13.641,72.2706]
[1672793926335,5.94092607,13.655,13.641,72.2706]
[1672793926527,9.12,13.65,13.641,72.2706]
[1672793926739,2.4804965,13.655,13.643,30.0]
[1672793926946,2.4804965,13.655,13.644,8.66]
[1672793928110,2.4804965,13.655,13.645,20.0]
[1672793928315,2.4804965,13.655,13.647,30.0]
[1672793928654,0.0004965,13.655,13.648,28.657]
[1672793928861,0.0004965,13.655,13.649,143.6849]
[1672793929180,0.0004965,13.655,13.65,28.656]
[1672793929813,0.0004965,13.655,13.651,30.0]
[1672793930118,0.0004965,13.655,13.652,31.58]
[1672793930328,57.5686258,13.676,13.653,30.0]
[1672793930543,3.46042957,13.673,13.654,17.77]
[1672793930732,3.46042957,13.673,13.655,30.0]
[1672793930942,3.46042957,13.673,13.657,30.0]
[1672793931158,3.46042957,13.673,13.658,41.51]
[1672793931698,0.0062141,13.667,13.659,55.31]
[1672793931909,2.6786258,13.676,13.66,30.0]
[1672793932224,2.6786258,13.676,13.662,30.0]
[1672793932424,2.6786258,13.676,13.663,48.75]
[1672793932631,2.6786258,13.676,13.664,30.0]
[1672793932960,2.6786258,13.676,13.662,30.0]
[1672793933167,9.17,13.67,13.662,30.0]
[1672793934219,9.17,13.67,13.66,30.0]
[1672793935711,2.6786258,13.676,13.66,30.0]
[1672793935933,2.6786258,13.676,13.662,30.0]
[1672793936109,2.6786258,13.676,13.663,39.5]
[1672793936315,2.6786258,13.676,13.664,30.0]
[1672793936543,2.6786258,13.676,13.665,39.93]
[1672793936752,2.6786258,13.676,13.666,30.0]
[1672793937058,2.6786258,13.676,13.667,40.29]
[1672793937500,2.6786258,13.676,13.668,30.0]
[1672793937686,2.6786258,13.676,13.669,20.0]
[1672793939703,2.6786258,13.676,13.661,264.6]
[1672793939704,6.13905537,13.676,13.661,264.6]
[1672793939921,54.89,13.675,13.661,264.6]
[1672793940108,45.85,13.67,13.661,264.6]
[1672793940319,45.85,13.67,13.659,395.9]
[1672793940320,54.92,13.669,13.659,395.9]
[1672793940546,20.0,13.668,13.649,264.6]
[1672793940863,45.74,13.66,13.649,264.6]
[1672793941069,45.74,13.66,13.645,1208.4]
[1672793941261,9.08,13.66,13.647,30.0]
[1672793942143,31.3840588,13.659,13.647,30.0]
[1672793942541,31.3840588,13.659,13.648,28.639]
[1672793942753,31.3840588,13.659,13.648,20.0]
[1672793943163,31.3840588,13.659,13.647,38.64]
[1672793944748,31.3840588,13.659,13.647,30.0]
[1672793945070,31.3840588,13.659,13.646,156.6404]
[1672793945277,34.84448837,13.659,13.647,20.0]
[1672793945482,34.84448837,13.659,13.648,30.0]
[1672793945699,45.82,13.66,13.648,30.0]
[1672793948014,49.28042957,13.66,13.648,30.0]
[1672793949170,45.82,13.66,13.648,30.0]
[1672793949369,34.84448837,13.665,13.661,812.5]
[1672793949576,9.09,13.67,13.662,30.0]
[1672793949796,9.09,13.67,13.662,842.5]
[1672793950114,20.0,13.669,13.628,264.6]
[1672793950328,30.0,13.667,13.636,111.331]
[1672793950513,9.09,13.65,13.636,111.331]
[1672793950726,9.09,13.65,13.638,9.323]
[1672793950948,9.09,13.65,13.636,121.931]
[1672793951358,9.09,13.65,13.636,111.331]
[1672793951359,45.71,13.65,13.636,111.331]
[1672793951562,49.17042957,13.65,13.636,111.331]
[1672793952112,45.71,13.65,13.636,111.331]
[1672793952308,45.71,13.65,13.634,11.08]
[1672793952516,45.71,13.65,13.633,30.0]
[1672793952517,55.0,13.649,13.633,30.0]
[1672793952720,106.3840588,13.649,13.633,30.0]
[1672793953475,75.0,13.649,13.633,30.0]
[1672793954423,45.71,13.65,13.634,8.98]
[1672793954632,9.08,13.65,13.634,8.98]
[1672793955250,9.08,13.65,13.636,30.0]
[1672793955456,9.08,13.65,13.637,8.978]
[1672793959244,9.08,13.65,13.636,43.63]
[1672793959455,9.08,13.65,13.636,30.0]
[1672793959653,9.08,13.65,13.637,20.0]
[1672793963766,9.08,13.65,13.641,8.7509385]
[1672793964824,54.98,13.653,13.641,8.7509385]
[1672793965040,31.3840588,13.655,13.641,8.7509385]
[1672793967362,15.28,13.65,13.641,8.7509385]
[1672793968403,78.46042957,13.649,13.641,8.7509385]
[1672793968800,3.46042957,13.648,13.641,8.7509385]
[1672793969014,55.0,13.647,13.641,8.7509385]
[1672793969638,23.46042957,13.646,13.641,8.7509385]
[1672793970079,58.47042957,13.645,13.641,8.7509385]
[1672793970495,3.46042957,13.644,13.641,8.7509385]
[1672793971549,55.02,13.643,13.641,8.7509385]
[1672793971959,3.46042957,13.642,13.641,8.7509385]
[1672793973137,55.01,13.645,13.641,8.7509385]
[1672793973349,20.0,13.646,13.641,8.7509385]
[1672793973746,20.0,13.648,13.641,8.7509385]
[1672793973961,3.46042957,13.645,13.641,8.7509385]
[1672793974401,58.47042957,13.645,13.641,8.7509385]
[1672793974802,3.46042957,13.644,13.641,8.7509385]
[1672793975039,55.02,13.643,13.641,8.7509385]
[1672793975364,3.46042957,13.642,13.641,8.7509385]
[1672793976591,58.48042957,13.642,13.641,8.7509385]
[1672793976802,78.48042957,13.642,13.631,2.6786258]
[1672793977010,76.23,13.64,13.631,2.6786258]
[1672793977220,55.04,13.639,13.631,2.6786258]
[1672793977426,20.0,13.638,13.631,2.6786258]
[1672793977647,55.04,13.637,13.631,2.6786258]
[1672793977854,20.0,13.636,13.631,2.6786258]
[1672793978063,55.05,13.635,13.631,2.6786258]
[1672793978263,58.51042957,13.635,13.631,2.6786258]
[1672793978482,3.46042957,13.634,13.631,2.6786258]
[1672793980594,47.34599196,13.633,13.631,2.6786258]
[1672793980810,122.41599196,13.632,13.631,2.6786258]
[1672793981015,78.53042957,13.632,13.631,2.6786258]
[1672793981753,125.87642153,13.632,13.631,2.6786258]
[1672793981949,78.53042957,13.632,13.631,2.6786258]
[1672793982169,122.35661226,13.632,13.631,2.6786258]
[1672793987120,30.0,13.631,13.627,27.9433896]
[1672793987318,30.0,13.631,13.627,12.5633896]
[1672793987319,115.22964131,13.63,13.627,12.5633896]
[1672793987539,30.0,13.629,13.619,44.9262141]
[1672793987743,115.23964131,13.628,13.619,44.9262141]
[1672793987946,118.70007088,13.628,13.619,44.9262141]
[1672793988283,76.23,13.63,13.619,44.9262141]
[1672793988284,60.15964131,13.626,13.619,44.9262141]
[1672793988808,3.46042957,13.625,13.619,44.9262141]
[1672793989001,33.46042957,13.625,13.619,44.9262141]
[1672793989211,3.46042957,13.625,13.619,44.9262141]
[1672793989422,3.46042957,13.624,13.619,44.9262141]
[1672793992891,47.6546946,13.623,13.619,44.9262141]
[1672793993432,51.11512417,13.623,13.619,44.9262141]
[1672793994593,47.6546946,13.622,13.619,44.9262141]
[1672793995641,47.6546946,13.622,13.613,163.0719]
[1672793995853,47.6546946,13.622,13.613,116.4168]
[1672794000589,20.0,13.628,13.613,116.4168]
[1672794000781,76.4,13.64,13.614,821.901]
[1672794000990,43.76108938,13.634,13.616,120.79813845]
[1672794001220,47.22151895,13.634,13.618,120.17930229]
[1672794001426,43.76108938,13.634,13.619,30.0]
[1672794001629,47.22151895,13.633,13.619,30.0]
[1672794001841,43.76108938,13.633,13.621,30.0]
[1672794002579,43.76108938,13.633,13.62,145.108]
[1672794002787,15.3,13.63,13.62,115.108]
[1672794003006,75.08,13.629,13.62,115.108]
[1672794003207,118.84108938,13.629,13.62,115.108]
[1672794003408,43.76108938,13.628,13.62,115.108]
[1672794003621,43.76108938,13.628,13.617,48.3346]
[1672794003622,75.09,13.627,13.617,48.3346]
[1672794003844,47.50793559,13.62,13.61,2.6786258]
[1672794004052,75.12,13.619,13.61,2.6786258]
[1672794004369,43.76108938,13.618,13.61,2.6786258]
[1672794004564,20.0,13.617,13.61,2.6786258]
[1672794004776,75.13,13.617,13.61,2.6786258]
[1672794004995,43.76108938,13.616,13.61,2.6786258]
[1672794005216,55.13,13.615,13.61,2.6786258]
[1672794005529,43.76108938,13.614,13.61,2.6786258]
[1672794005742,55.14,13.613,13.599,30.0]
[1672794005948,2.6786258,13.61,13.599,30.0]
[1672794006152,43.10415968,13.612,13.599,30.0]
[1672794006361,3.46042957,13.61,13.595,9.673]
[1672794006570,55.16,13.609,13.591,9.676]
[1672794006780,30.4136033,13.603,13.591,9.676]
[1672794006990,3.46042957,13.608,13.591,9.676]
[1672794007197,55.17,13.607,13.598,19.9262141]
[1672794007417,20.0,13.606,13.598,19.9262141]
[1672794007736,55.17,13.605,13.598,19.9262141]
[1672794007934,104.13079416,13.605,13.598,19.9262141]
[1672794008145,45.50036459,13.604,13.598,19.9262141]
[1672794008372,55.18,13.603,13.598,19.9262141]
[1672794008682,45.50036459,13.602,13.598,19.9262141]
[1672794008900,55.19,13.601,13.598,19.9262141]
[1672794009086,58.65042957,13.601,13.598,19.9262141]
[1672794009304,45.50036459,13.6,13.598,19.9262141]
[1672794009520,75.2,13.599,13.582,10.04]
[1672794009731,19.9262141,13.597,13.574,10.04]
[1672794009943,55.21,13.596,13.579,40.04]
[1672794010151,47.2338556,13.598,13.579,40.04]
[1672794010369,43.77342603,13.595,13.579,40.04]
[1672794010566,43.77342603,13.595,13.579,10.04]
[1672794010896,43.77342603,13.595,13.574,10.37]
[1672794011083,43.77342603,13.595,13.571,30.0]
[1672794011084,43.77342603,13.595,13.579,119.3416]
[1672794011299,43.77342603,13.595,13.58,30.0]
[1672794011509,31.3840588,13.597,13.581,10.37]
[1672794011715,43.77342603,13.6,13.581,10.37]
[1672794012135,78.66042957,13.599,13.581,10.37]
[1672794012559,47.2338556,13.598,13.581,10.37]
[1672794012770,20.0,13.597,13.581,10.37]
[1672794012987,55.21,13.596,13.58,30.0]
[1672794013199,98.98342603,13.596,13.58,30.0]
[1672794013405,55.21,13.596,13.58,30.0]
[1672794013626,43.77342603,13.595,13.58,30.0]
[1672794013949,43.77342603,13.595,13.579,149.4616]
[1672794013950,30.0,13.593,13.579,108.9716]
[1672794014143,75.23,13.592,13.579,108.9716]
[1672794014352,2.6786258,13.585,13.579,108.9716]
[1672794014667,55.26,13.584,13.57,1.93911889]
[1672794014883,3.46042957,13.584,13.578,44.4262141]
[1672794015290,0.5,13.577,13.571,111.268]
[1672794015503,15.26,13.58,13.57,1.93911889]
[1672794015718,75.28,13.579,13.57,1.93911889]
[1672794015924,114.97100658,13.579,13.568,2.61774469]
[1672794016139,1.93911889,13.57,13.568,2.61774469]
[1672794016674,85.29,13.577,13.563,111.268]
[1672794016675,30.0,13.572,13.563,111.268]
[1672794016879,53.54655449,13.569,13.556,112.3943623]
[1672794017225,54.01862027,13.567,13.556,112.3943623]
[1672794017515,63.91135161,13.568,13.556,112.3943623]
[1672794017704,64.43772161,13.566,13.556,112.3943623]
[1672794017914,55.34,13.565,13.556,112.3943623]
[1672794018140,50.0,13.564,13.556,112.3943623]
[1672794018334,55.35,13.563,13.556,112.3943623]
[1672794018549,31.4994947,13.564,13.556,112.3943623]
[1672794018983,30.0,13.586,13.556,112.3943623]
[1672794019176,75.28,13.579,13.556,112.3943623]
[1672794019387,142.46482307,13.579,13.556,112.3943623]
[1672794019606,39.35409761,13.578,13.557,11.12]
[1672794019823,55.29,13.577,13.557,11.12]
[1672794020038,30.0,13.576,13.557,11.12]
[1672794020245,15.28,13.57,13.558,117.5906]
[1672794020563,55.32,13.569,13.558,117.5906]
[1672794020774,58.78042957,13.569,13.558,117.5906]
[1672794021223,23.46042957,13.568,13.558,117.5906]
[1672794021525,55.33,13.567,13.558,117.5906]
[1672794021716,76.39,13.58,13.558,117.5906]
[1672794021932,15.19,13.58,13.559,11.12]
[1672794022138,31.3840588,13.575,13.559,11.12]
[1672794022567,35.89366804,13.574,13.559,11.12]
[1672794023415,58.76042957,13.573,13.558,117.5906]
[1672794023822,94.65409761,13.573,13.558,117.5906]
[1672794024032,3.46042957,13.572,13.558,117.5906]
[1672794024254,55.31,13.571,13.558,117.5906]
[1672794024457,15.17,13.57,13.558,117.5906]
[1672794024777,30.0,13.568,13.558,117.5906]
[1672794024977,55.33,13.567,13.558,117.5906]
[1672794025189,91.70384761,13.567,13.558,117.5906]
[1672794025610,32.91341804,13.566,13.558,117.5906]
[1672794025819,55.34,13.565,13.558,117.5906]
[1672794026035,55.34,13.565,13.556,112.3943623]
[1672794026235,34.05278361,13.564,13.556,61.25944045]
[1672794026449,30.0,13.562,13.556,14.10167919]
[1672794026660,30.0,13.56,13.556,14.10167919]
[1672794026874,29.38825619,13.555,13.552,0.16941874]
[1672794027200,35.69277095,13.559,13.552,0.16941874]
[1672794027389,75.37,13.558,13.552,0.16941874]
[1672794027805,35.69277095,13.557,13.553,0.55686448]
[1672794028024,55.37,13.556,13.553,0.55686448]
[1672794028446,20.0,13.558,13.553,0.55686448]
[1672794028447,55.37,13.557,13.553,0.55686448]
[1672794028888,55.37,13.557,13.552,50.16941874]
[1672794029287,55.37,13.557,13.503,150.5273791]
[1672794029496,53.57881476,13.551,13.531,2.14151875]
[1672794029823,62.63283213,13.539,13.511,741.97779233]
[1672794030022,55.45,13.538,13.524,141.73054401]
[1672794030231,30.0,13.536,13.516,9.14619963]
[1672794030568,30.0,13.528,13.503,412.87218389]
[1672794030753,129.26650669,13.527,13.503,412.87218389]
[1672794030969,174.32128437,13.527,13.503,406.87218389]
[1672794031292,50.0,13.524,13.503,406.87218389]
[1672794031494,149.28650669,13.523,13.503,406.87218389]
[1672794031707,198.6067579,13.523,13.503,591.26458776]
[1672794031920,75.51,13.523,13.504,30.0]
[1672794032125,75.51,13.523,13.503,591.26458776]
[1672794032359,15.3,13.52,13.503,591.26458776]
[1672794032567,30.0,13.518,13.503,591.26458776]
[1672794032776,15.16,13.51,13.503,591.26458776]
[1672794032993,75.57,13.509,13.503,591.26458776]
[1672794033518,20.0,13.509,13.503,633.28886376]
[1672794033925,76.38,13.52,13.503,633.28886376]
[1672794033926,46.47099787,13.513,13.503,633.28886376]
[1672794034135,3.46042957,13.515,13.503,633.28886376]
[1672794034354,30.43,13.52,13.503,633.28886376]
[1672794034566,105.46142744,13.519,13.503,633.28886376]
[1672794034977,46.47099787,13.518,13.503,633.28886376]
[1672794035193,75.53,13.517,13.503,633.28886376]
[1672794035627,15.26,13.51,13.503,633.28886376]
[1672794035820,55.57,13.509,13.503,633.28886376]
[1672794036025,59.03042957,13.509,13.503,633.28886376]
[1672794036246,30.0,13.507,13.503,633.28886376]
[1672794036460,55.58,13.506,13.503,583.34895901]
[1672794036666,20.0,13.505,13.503,500.62426808]
[1672794036997,55.59,13.504,13.503,500.62426808]
[1672794037191,38.15137967,13.505,13.503,500.62426808]
[1672794037405,38.15137967,13.504,13.503,500.62426808]
[1672794037727,38.15137967,13.504,13.503,450.62426808]
[1672794038443,76.37,13.52,13.503,450.62426808]
[1672794038444,15.17,13.52,13.504,38.15]
[1672794038677,15.43,13.53,13.507,85.85856523]
[1672794038889,3.46042957,13.521,13.507,85.85856523]
[1672794039288,55.48,13.529,13.507,85.85856523]
[1672794039597,76.48,13.52,13.507,85.85856523]
[1672794039824,55.53,13.519,13.507,85.85856523]
[1672794040022,58.99042957,13.519,13.507,85.85856523]
[1672794040242,15.17,13.53,13.507,85.85856523]
[1672794040441,3.36462447,13.522,13.507,85.85856523]
[1672794040973,15.17,13.52,13.507,85.85856523]
[1672794041186,3.36462447,13.522,13.508,30.0]
[1672794041390,76.37,13.53,13.508,30.0]
[1672794041609,3.36462447,13.529,13.508,30.0]
[1672794042016,3.36462447,13.529,13.507,115.85856523]
[1672794042237,3.36462447,13.529,13.507,85.85856523]
[1672794042453,55.49,13.528,13.507,85.85856523]
[1672794042648,55.49,13.528,13.507,115.85856523]
[1672794042857,55.48,13.529,13.507,115.85856523]
[1672794043087,55.48,13.529,13.508,30.0]
[1672794043291,55.48,13.529,13.508,42.54747151]
[1672794043523,55.48,13.529,13.507,115.85856523]
[1672794043921,55.48,13.529,13.508,30.0]
[1672794044253,20.0,13.528,13.508,30.0]
[1672794044674,108.7595,13.539,13.508,30.0]
[1672794044866,76.37,13.54,13.511,30.0]
[1672794044867,15.17,13.54,13.511,30.0]
[1672794045083,3.36462447,13.538,13.512,20.0]
[1672794045289,15.34,13.55,13.52,15.17]
[1672794045715,55.4,13.549,13.517,348.24244945]
[1672794045934,58.76462447,13.549,13.518,30.0]
[1672794046142,3.36462447,13.548,13.518,30.0]
[1672794046350,55.41,13.547,13.518,30.0]
[1672794046762,3.36462447,13.546,13.518,30.0]
[1672794046969,55.42,13.545,13.521,30.0]
[1672794047512,55.4,13.549,13.521,337.25047675]
[1672794047937,58.76462447,13.549,13.521,337.25047675]
[1672794048121,3.36462447,13.548,13.521,337.25047675]
[1672794048337,55.41,13.547,13.521,337.25047675]
[1672794048760,3.36462447,13.546,13.521,337.25047675]
[1672794048968,55.42,13.545,13.521,337.25047675]
[1672794049198,20.0,13.544,13.521,337.25047675]
[1672794049509,15.3,13.54,13.521,307.25047675]
[1672794049722,75.44,13.539,13.521,307.25047675]
[1672794049910,78.80462447,13.539,13.521,307.25047675]
[1672794050236,32.86462447,13.538,13.521,307.25047675]
[1672794050458,75.45,13.537,13.521,307.25047675]
[1672794050652,78.81462447,13.537,13.521,307.25047675]
[1672794051069,3.36462447,13.537,13.522,30.0]
[1672794051291,20.0,13.548,13.522,30.0]
[1672794051499,3.36462447,13.548,13.522,30.0]
[1672794051824,58.77462447,13.547,13.522,337.25047675]
[1672794052241,3.35074701,13.546,13.522,337.25047675]
[1672794052449,55.42,13.545,13.522,337.25047675]
[1672794052971,23.35074701,13.544,13.522,337.25047675]
[1672794053295,3.35074701,13.543,13.522,337.25047675]
[1672794053703,3.35074701,13.543,13.523,30.0]
[1672794054771,58.78074701,13.543,13.523,30.0]
[1672794055081,23.35074701,13.542,13.523,30.0]
[1672794055290,23.35074701,13.542,13.523,142.7975]
[1672794055483,15.17,13.54,13.523,112.7975]
[1672794055686,75.44,13.539,13.523,287.25047673]
[1672794055902,75.44,13.539,13.524,30.0]
[1672794056324,20.0,13.539,13.524,30.0]
[1672794056538,76.39,13.55,13.524,30.0]
[1672794056750,20.0,13.548,13.524,30.0]
[1672794056965,3.35074701,13.543,13.524,30.0]
[1672794057594,3.35074701,13.543,13.524,287.25047673]
[1672794057813,76.1,13.54,13.524,287.25047673]
[1672794058001,30.0,13.538,13.524,287.25047673]
[1672794058213,75.45,13.537,13.524,287.25047673]
[1672794059057,74.45,13.537,13.524,287.25047673]
[1672794059277,19.0,13.537,13.525,30.0]
[1672794059680,76.39,13.55,13.525,30.0]
[1672794059895,55.4,13.549,13.525,30.0]
[1672794060233,55.4,13.549,13.524,287.25047673]
[1672794060234,23.66272379,13.548,13.524,287.25047673]
[1672794060420,30.0,13.546,13.524,287.25047673]
[1672794060756,15.16,13.54,13.524,287.25047673]
[1672794060942,55.44,13.539,13.524,287.25047673]
[1672794061153,20.0,13.538,13.524,287.25047673]
[1672794061384,55.45,13.537,13.524,287.25047673]
[1672794061914,20.0,13.536,13.524,287.25047673]
[1672794062518,76.39,13.55,13.525,30.0]
[1672794062734,20.0,13.538,13.525,30.0]
[1672794063278,19.0,13.538,13.525,30.0]
[1672794063467,3.66272379,13.541,13.525,30.0]
[1672794063803,55.41,13.548,13.525,30.0]
[1672794063997,3.66272379,13.547,13.525,30.0]
[1672794064208,55.41,13.546,13.525,30.0]
[1672794064540,5.80424254,13.545,13.525,30.0]
[1672794064853,59.08272379,13.544,13.525,30.0]
[1672794065162,25.80424254,13.543,13.524,287.25047673]
[1672794065483,59.09272379,13.542,13.524,287.25047673]
[1672794065796,76.36,13.54,13.524,287.25047673]
[1672794066133,81.24424254,13.539,13.524,287.25047673]
[1672794066519,3.66272379,13.538,13.524,287.25047673]
[1672794066731,57.59151875,13.537,13.524,287.25047673]
[1672794066933,20.0,13.536,13.524,287.25047673]
[1672794067144,57.60151875,13.535,13.524,287.25047673]
[1672794067466,61.26424254,13.535,13.524,287.25047673]
[1672794067670,23.66272379,13.534,13.524,287.25047673]
[1672794067998,5.80424254,13.533,13.524,287.25047673]
[1672794068207,20.0,13.532,13.524,287.25047673]
[1672794068407,2.14151875,13.531,13.524,287.25047673]
[1672794069361,15.16,13.53,13.524,287.25047673]
[1672794069556,22.14151875,13.529,13.524,287.25047673]
[1672794069768,25.80424254,13.529,13.524,287.25047673]
[1672794070199,3.66272379,13.528,13.524,287.25047673]
[1672794070413,57.63151875,13.527,13.524,287.25047673]
[1672794070626,20.0,13.526,13.524,287.25047673]
[1672794070834,55.5,13.525,13.524,287.25047673]
[1672794071060,124.12793817,13.525,13.524,287.25047673]
[1672794072832,75.5,13.525,13.524,287.25047673]
[1672794073043,79.16272379,13.525,13.524,287.25047673]
[1672794073248,23.66272379,13.525,13.524,287.25047673]
[1672794073666,98.62793817,13.525,13.524,238.93169586]